fUST/lending_fUST_20250731
["ID","MTS","AMOUNT","RATE_DAILY","PERIOD"]
[376295525,1753921846339,-151.0,0.00022316,7]
[376295526,1753921846349,-460.0,0.00022353,2]
[376295527,1753921846361,-460.0,0.00022353,2]
[376295528,1753921846370,-740.65,0.00022354,2]
[376295529,1753921846380,-718.31,0.00022354,2]
[376295530,1753921846390,-460.0,0.00022355,2]
[376295531,1753921846399,-395.18,0.00022355,2]
[376295532,1753921846408,-151.0,0.00022356,7]
[376295533,1753921846418,-151.0,0.00022356,7]
[376295534,1753921846427,-160.0,0.00022367,2]
[376295536,1753921846436,-460.59675358,0.00022367,2]
[376295538,1753921846446,-160.0,0.00022367,2]
[376295540,1753921846455,-841.2246943,0.00022367,2]
[376295541,1753921846464,-160.0,0.00022367,2]
[376295542,1753921846474,-160.0,0.00022367,2]
[376295544,1753921846483,-216.14611358,0.00022367,2]
[376295546,1753921846493,-671.28,0.00022465,2]
[376295548,1753921846502,-460.0,0.00022465,2]
[376295550,1753921846512,-460.0,0.00022465,2]
[376295552,1753921846522,-500.0,0.00022473,2]
[376295554,1753921846531,-500.0,0.00022473,2]
[376295556,1753921846540,-500.0,0.00022473,2]
[376295558,1753921846550,-500.0,0.00022473,2]
[376295560,1753921846560,-153363.00119759,0.0002249,7]
[376295562,1753921846569,-1177.78,0.00022521,2]
[376295564,1753921846579,-476.68,0.00022521,2]
[376295566,1753921846588,-460.0,0.00022521,2]
[376295568,1753921846597,-1142.87973281,0.00022555,7]
[376295570,1753921846606,-372.42,0.00022572,2]
[376295572,1753921846615,-151.0,0.00022623,2]
[376295574,1753921846624,-151.0,0.00022623,2]
[376295576,1753921846634,-151.0,0.00022623,2]
[376295578,1753921846643,-151.0,0.00022623,2]
[376295580,1753921846651,-500.0,0.00022623,2]
[376295582,1753921846660,-151.0,0.00022623,2]
[376295584,1753921846670,-405.10140509,0.00022623,2]
[376295586,1753921846679,-151.0,0.00022623,2]
[376295588,1753921846689,-151.0,0.00022623,2]
[376295590,1753921846698,-151.0,0.00022623,2]
[376295592,1753921846707,-460.0,0.00022627,2]
[376295594,1753921846717,-460.0,0.00022627,2]
[376295596,1753921846726,-740.65,0.00022628,2]
[376295598,1753921846735,-718.31,0.00022628,2]
[376295600,1753921846744,-460.0,0.00022629,2]
[376295602,1753921846753,-282.5,0.00022664,5]
[376295604,1753921846762,-180.0,0.00022685,2]
[376295606,1753921846772,-2652.0,0.00022699,2]
[376295608,1753921846781,-500.0,0.00022703,2]
[376295610,1753921846790,-151.0,0.00022703,7]
[376295612,1753921846798,-151.0,0.00022703,7]
[376295614,1753921846807,-886.052741,0.00022703,7]
[376295615,1753921846817,-886.052741,0.00022703,7]
[376295617,1753921846826,-151.0,0.00022719,7]
[376295619,1753921846836,-151.0,0.00022719,7]
[376295622,1753921846845,-259.778672,0.00022719,7]
[376295624,1753921846854,-325.0,0.0002272,2]
[376295626,1753921846864,-671.28,0.00022739,2]
[376295627,1753921846873,-460.0,0.00022739,2]
[376295630,1753921846883,-460.0,0.00022739,2]
[376295631,1753921846892,-500.0,0.00022773,2]
[376295633,1753921846902,-500.0,0.00022773,2]
[376295635,1753921846911,-500.0,0.00022773,2]
[376295638,1753921846921,-500.35759823,0.00022773,2]
[376295640,1753921846930,-151.0,0.00022773,7]
[376295641,1753921846939,-151.0,0.00022773,7]
[376295643,1753921846948,-1177.78,0.00022795,2]
[376295645,1753921846958,-151.0,0.00022795,7]
[376295647,1753921846967,-476.68,0.00022795,2]
[376295649,1753921846976,-151.0,0.00022795,7]
[376295651,1753921846985,-460.0,0.00022795,2]
[376295653,1753921846995,-1142.87973281,0.00022797,7]
[376295655,1753921847004,-1134.19745975,0.00022799,2]
[376295657,1753921847013,-500.0,0.00022799,2]
[376295659,1753921847022,-1134.19745975,0.00022799,2]
[376295661,1753921847030,-308.1393754,0.00022799,2]
[376295662,1753921847038,-1134.19745975,0.00022799,2]
[376295664,1753921847048,-1134.19745975,0.00022799,2]
[376295666,1753921847057,-1134.19745975,0.00022799,2]
[376295668,1753921847068,-1134.19745975,0.00022799,2]
[376295670,1753921847079,-1134.19745975,0.00022799,2]
[376295672,1753921847089,-1134.19745975,0.00022799,2]
[376295674,1753921847099,-1134.19745975,0.00022799,2]
[376295676,1753921847109,-1134.19745975,0.00022799,2]
[376295678,1753921847117,-1134.19745975,0.00022799,2]
[376295680,1753921847126,-1134.19745975,0.00022799,2]
[376295682,1753921847135,-1134.19745975,0.00022799,2]
[376295684,1753921847144,-1134.19745975,0.00022799,2]
[376295685,1753921847153,-1134.19745975,0.00022799,2]
[376295687,1753921847163,-1134.19745975,0.00022799,2]
[376295689,1753921847172,-1134.19745975,0.00022799,2]
[376295691,1753921847182,-1134.19745975,0.00022799,2]
[376295693,1753921847193,-1134.19745975,0.00022799,2]
[376295695,1753921847203,-1134.19745975,0.00022799,2]
[376295697,1753921847212,-168644.92964485,0.000228,2]
[376295699,1753921847221,-151.0,0.000228,7]
[376295701,1753921847231,-151.0,0.000228,7]
[376295703,1753921847240,-151.0,0.000228,7]
[376295705,1753921847249,-151.0,0.000228,7]
[376295707,1753921847259,-228.514847,0.000228,7]
[376295709,1753921847268,-151.0,0.000228,7]
[376295711,1753921847276,-151.0,0.000228,7]
[376295713,1753921847286,-1272.660436,0.000228,7]
[376295715,1753921847295,-1272.660436,0.000228,7]
[376295716,1753921847305,-886.052741,0.000228,7]
[376295717,1753921847314,-886.052741,0.000228,7]
[376295718,1753921847323,-209.723642,0.000228,7]
[376295719,1753921847336,-151.0,0.000228,7]
[376295720,1753921847345,-209.723642,0.000228,7]
[376295721,1753921847354,-151.0,0.000228,7]
[376295722,1753921847364,-151.0,0.000228,7]
[376295723,1753921847373,-151.0,0.000228,7]
[376295725,1753921847383,-151.0,0.000228,7]
[376295727,1753921847392,-151.0,0.000228,7]
[376295729,1753921847401,-151.0,0.000228,7]
[376295731,1753921847410,-151.0,0.000228,7]
[376295741,1753921847492,-151.0,0.000228,7]
[376295743,1753921847511,-325.0,0.00022892,2]
[376295745,1753921847520,-292.78305737,0.00022899,2]
[376295747,1753921847530,-500.0,0.00022899,2]
[376295749,1753921847539,-500.0,0.00022899,2]
[376295751,1753921847549,-500.0,0.00022899,2]
[376295754,1753921847558,-500.0,0.00022899,2]
[376295756,1753921847567,-605.03164241,0.00022899,2]
[376295758,1753921847578,-423.52214969,0.00022899,2]
[376295759,1753921847587,-296.46550478,0.00022899,2]
[376295762,1753921847597,-207.52585335,0.00022899,2]
[376295764,1753921847606,-151.0,0.00022899,2]
[376295766,1753921847615,-151.0,0.00022899,2]
[376295768,1753921847624,-182.22699114,0.00022899,2]
[376295770,1753921847633,-151.0,0.000229,7]
[376295772,1753921847642,-151.0,0.000229,7]
[376295774,1753921847652,-151.0,0.000229,7]
[376295776,1753921847661,-3653.66,0.000229,7]
[376295777,1753921847670,-13729.89313864,0.000229,7]
[376295788,1753921847756,-555.55569991,0.000229,7]
[376295791,1753921847779,-460.0,0.00019507,2]
[376295793,1753921847789,-2690.03116145,0.000229,7]
[376295795,1753921847799,-151.0,0.000229,7]
[376295797,1753921847808,-1472.5,0.000229,7]
[376295799,1753921847817,-963.681664,0.000229,7]
[376295802,1753921847828,-151.0,0.000229,7]
[376295804,1753921847837,-196.305741,0.000229,7]
[376295806,1753921847846,-196.305741,0.000229,7]
[376295808,1753921847855,-246.975365,0.000229,7]
[376295810,1753921847865,-246.975365,0.000229,7]
[376295812,1753921847874,-20399.59083721,0.000229,7]
[376295830,1753921848035,-460.0,0.00019781,2]
[376295832,1753921848045,-8485.65820172,0.000229,7]
[376295834,1753921848055,-223.99816699,0.000229,2]
[376295836,1753921848069,-460.0,0.00022901,2]
[376295838,1753921848080,-460.0,0.00022901,2]
[376295840,1753921848090,-740.65,0.00022902,2]
[376295842,1753921848100,-718.31,0.00022902,2]
[376295844,1753921848110,-460.0,0.00022903,2]
[376295846,1753921848120,-325.0,0.00022925,2]
[376295848,1753921848129,-500.0,0.00022973,2]
[376295850,1753921848140,-500.0,0.00022973,2]
[376295852,1753921848149,-500.0,0.00022973,2]
[376295854,1753921848158,-150.0,0.00022973,2]
[376295856,1753921848168,-500.0,0.00022999,2]
[376295858,1753921848177,-500.0,0.00022999,2]
[376295860,1753921848186,-500.0,0.00022999,2]
[376295862,1753921848196,-364.33091773,0.00022999,2]
[376295864,1753921848205,-151.0,0.00022999,7]
[376295866,1753921848214,-151.0,0.00022999,7]
[376295868,1753921848223,-368.69475,0.00022999,7]
[376295870,1753921848232,-368.69475,0.00022999,7]
[376295872,1753921848242,-151.0,0.00022999,7]
[376295874,1753921848251,-151.0,0.00022999,7]
[376295876,1753921848260,-252.286556,0.00022999,7]
[376295878,1753921848269,-151.0,0.00022999,7]
[376295880,1753921848279,-34062.02507977,0.00023,4]
[376295899,1753921848448,-159.13966319,0.00021543,2]
[376295901,1753921848462,-142.61459461,0.00023,4]
[376295904,1753921848477,-27114.04093501,0.00023,4]
[376295906,1753921848490,-151.0,0.00023,7]
[376295909,1753921848503,-151.0,0.00023,7]
[376295911,1753921848518,-151.0,0.00023,7]
[376295914,1753921848531,-208.511132,0.00023,7]
[376295916,1753921848543,-151.0,0.00023,7]
[376295918,1753921848555,-151.0,0.00023,7]
[376295921,1753921848567,-151.0,0.00023,7]
[376295923,1753921848580,-963.681664,0.00023,7]
[376295926,1753921848594,-151.0,0.00023,7]
[376295928,1753921848607,-196.305741,0.00023,7]
[376295930,1753921848620,-196.305741,0.00023,7]
[376295933,1753921848631,-246.975365,0.00023,7]
[376295935,1753921848641,-162.811962,0.00023,7]
[376295937,1753921848653,-246.975365,0.00023,7]
[376295939,1753921848664,-162.811962,0.00023,7]
[376295942,1753921848677,-151.0,0.00023,7]
[376295944,1753921848690,-151.0,0.00023,7]
[376295946,1753921848702,-151.0,0.00023,7]
[376295949,1753921848716,-151.0,0.00023,7]
[376295951,1753921848729,-151.0,0.00023,7]
[376295954,1753921848742,-151.0,0.00023,7]
[376295956,1753921848756,-151.648838,0.00023,7]
[376295958,1753921848767,-368.69475,0.00023,7]
[376295960,1753921848777,-368.69475,0.00023,7]
[376295963,1753921848787,-368.69475,0.00023,7]
[376295965,1753921848798,-368.69475,0.00023,7]
[376295967,1753921848811,-287.428627,0.00023,7]
[376295970,1753921848825,-151.0,0.00023,7]
[376295972,1753921848838,-151.0,0.00023,7]
[376295974,1753921848849,-287.428627,0.00023,7]
[376295976,1753921848860,-151.0,0.00023,7]
[376295979,1753921848873,-151.0,0.00023,7]
[376295981,1753921848886,-151.0,0.00023,7]
[376295983,1753921848897,-151.0,0.00023,7]
[376295985,1753921848908,-151.0,0.00023,7]
[376295987,1753921848918,-151.0,0.00023,7]
[376295989,1753921848929,-160.0,0.00023,2]
[376295991,1753921848941,-1272.660436,0.00023,7]
[376295994,1753921848954,-1272.660436,0.00023,7]
[376295996,1753921848965,-1272.660436,0.00023,7]
[376295998,1753921848976,-1272.660436,0.00023,7]
[376296000,1753921848989,-886.052741,0.00023,7]
[376296002,1753921849000,-886.052741,0.00023,7]
[376296005,1753921849012,-886.052741,0.00023,7]
[376296007,1753921849023,-886.052741,0.00023,7]
[376296009,1753921849034,-209.723642,0.00023,7]
[376296011,1753921849045,-209.723642,0.00023,7]
[376296013,1753921849057,-151.0,0.00023,7]
[376296015,1753921849070,-151.0,0.00023,7]
[376296017,1753921849081,-209.723642,0.00023,7]
[376296020,1753921849092,-209.723642,0.00023,7]
[376296022,1753921849103,-151.0,0.00023,7]
[376296024,1753921849115,-151.0,0.00023,7]
[376296026,1753921849127,-166.465112,0.00023,7]
[376296028,1753921849138,-179.0,0.00023,7]
[376296031,1753921849149,-1567.96037893,0.00023,2]
[376296033,1753921849161,-151.0,0.00023,7]
[376296035,1753921849172,-151.0,0.00023,7]
[376296037,1753921849183,-151.0,0.00023,7]
[376296039,1753921849195,-151.0,0.00023,7]
[376296042,1753921849207,-151.0,0.00023,7]
[376296044,1753921849219,-151.0,0.00023,7]
[376296047,1753921849231,-151.0,0.00023,7]
[376296049,1753921849243,-151.0,0.00023,7]
[376296051,1753921849253,-151.0,0.00023,7]
[376296053,1753921849263,-151.0,0.00023,7]
[376296055,1753921849272,-104670.21675602,0.00023,4]
[376297214,1753921869093,160.02154029,0.00018,120]
[376297228,1753922048107,164.159282,0.00013699,2]
[376297233,1753922728158,150.0,0.00022143,30]
[376297239,1753922972137,-194.0,0.00019177,2]
[376297240,1753922972158,-300.0,0.00019177,2]
[376297241,1753922972178,-1200.0,0.00019177,2]
[376297242,1753922972199,-300.0,0.00019177,2]
[376297243,1753922972220,-460.0,0.00019178,2]
[376297244,1753922972239,-211.31705112,0.00019178,2]
[376297245,1753922972260,-460.0,0.00019178,2]
[376297246,1753922972283,-460.0,0.00019178,2]
[376297247,1753922972304,-460.0,0.00019178,2]
[376297248,1753922972324,-460.0,0.00019178,2]
[376297249,1753922972347,-466.5537278,0.00019178,2]
[376297250,1753922972368,-546.4,0.00019178,2]
[376297251,1753922972390,-460.0,0.00019178,2]
[376297252,1753922972411,-500.0,0.00019178,2]
[376297253,1753922972431,-10157.11843457,0.00019178,2]
[376297254,1753922972459,-424.92369681,0.0001923,2]
[376297255,1753922972487,-460.0,0.0001923,2]
[376297256,1753922972516,-460.0,0.0001923,2]
[376297257,1753922972540,-460.0,0.0001923,2]
[376297258,1753922972565,-460.0,0.0001923,2]
[376297259,1753922972590,-460.0,0.0001923,2]
[376297260,1753922972618,-460.0,0.0001923,2]
[376297261,1753922972644,-460.0,0.0001923,2]
[376297262,1753922972670,-460.0,0.0001923,2]
[376297263,1753922972695,-460.0,0.0001923,2]
[376297264,1753922972720,-460.0,0.0001923,2]
[376297265,1753922972745,-460.0,0.0001923,2]
[376297266,1753922972769,-460.0,0.0001923,2]
[376297267,1753922972797,-460.0,0.00019231,2]
[376297268,1753922972821,-468.64354089,0.00019231,2]
[376297269,1753922972843,-460.0,0.00019231,2]
[376297270,1753922972866,-460.0,0.00019231,2]
[376297271,1753922972890,-460.0,0.00019231,2]
[376297272,1753922972915,-323.77554078,0.00019231,2]
[376297273,1753922972942,-461.43921183,0.00019231,2]
[376297274,1753922972971,-383.00055464,0.00019231,2]
[376297275,1753922972996,-460.0,0.00019231,2]
[376297276,1753922973022,-203.707735,0.00019231,2]
[376297277,1753922973047,-952.29,0.00019231,2]
[376297278,1753922973069,-460.0,0.00019231,2]
[376297279,1753922973094,-460.0,0.00019231,2]
[376297280,1753922973127,-460.0,0.00019231,2]
[376297281,1753922973151,-460.0,0.00019231,2]
[376297282,1753922973173,-460.0,0.00019231,2]
[376297283,1753922973199,-460.0,0.00019231,2]
[376297284,1753922973224,-460.0,0.00019231,2]
[376297285,1753922973249,-460.0,0.00019231,2]
[376297286,1753922973275,-626.73,0.00019231,2]
[376297287,1753922973299,-460.0,0.00019231,2]
[376297288,1753922973324,-460.0,0.00019231,2]
[376297289,1753922973348,-460.0,0.00019231,2]
[376297290,1753922973374,-460.0,0.00019231,2]
[376297291,1753922973399,-460.0,0.00019231,2]
[376297292,1753922973423,-460.0,0.00019231,2]
[376297293,1753922973447,-221.45712375,0.00019231,2]
[376297294,1753922973470,-213.08025408,0.00019231,2]
[376297295,1753922987228,164.159283,0.00013699,2]
[376297366,1753923032492,-460.0,0.00019178,2]
[376297369,1753923032504,-424.92369681,0.0001923,2]
[376298205,1753923040625,-1241.1733763,0.00019178,2]
[376298209,1753923040639,-377.33167231,0.00019178,2]
[376298212,1753923040651,-1476.8542889,0.00019178,2]
[376298218,1753923040678,-1904.64066249,0.00019178,2]
[376298221,1753923040687,-35.07630319,0.0001923,2]
[376298224,1753923040697,-460.0,0.0001923,2]
[376298227,1753923040709,-300.0,0.0001923,2]
[376298231,1753923040718,-571.47,0.0001923,2]
[376298234,1753923040728,-460.0,0.0001923,2]
[376298237,1753923040737,-370.97513095,0.0001923,2]
[376298272,1753923040942,-89.02486905,0.0001923,2]
[376298274,1753923040952,-291.33766982,0.0001923,2]
[376298286,1753923041048,-8.66233018,0.0001923,2]
[376298288,1753923041058,-246.91974592,0.00019231,2]
[376298290,1753923041067,-460.0,0.00019231,2]
[376298292,1753923041076,-460.0,0.00019231,2]
[376298294,1753923041085,-460.0,0.00019231,2]
[376298296,1753923041094,-460.0,0.00019231,2]
[376298298,1753923041104,-460.0,0.00019231,2]
[376298300,1753923041113,-460.0,0.00019232,2]
[376298302,1753923041122,-1384.98,0.00019232,2]
[376298304,1753923041132,-679.38,0.00019232,2]
[376298306,1753923041141,-392.1918525,0.00019232,2]
[376298308,1753923041151,-404.6731776,0.00019232,2]
[376298310,1753923041161,-460.0,0.00019232,2]
[376298312,1753923041170,-248.56,0.00019233,2]
[376298314,1753923041180,-460.0,0.00019233,2]
[376298316,1753923041189,-460.0,0.00019233,2]
[376298318,1753923041198,-1846.79,0.00019233,2]
[376298320,1753923041207,-460.0,0.00019233,2]
[376298322,1753923041216,-511.35,0.00019233,2]
[376298324,1753923041229,-314.98,0.00019233,2]
[376298326,1753923041239,-703.92,0.00019233,2]
[376298328,1753923041249,-460.0,0.00019233,2]
[376298330,1753923041262,-24900.0,0.00019234,2]
[376298333,1753923041272,-173.91497599,0.00019352,2]
[376298335,1753923041282,-460.0,0.00019452,2]
[376298337,1753923041291,-460.0,0.00019504,2]
[376298339,1753923041300,-952.29,0.00019505,2]
[376298341,1753923041310,-626.73,0.00019505,2]
[376298343,1753923041319,-460.0,0.00019505,2]
[376298345,1753923041328,-460.0,0.00019505,2]
[376298346,1753923041339,-460.0,0.00019505,2]
[376298348,1753923041348,-152.46,0.00019505,2]
[376298349,1753923041358,-330.74,0.00019505,2]
[376298351,1753923041367,-1384.98,0.00019506,2]
[376298353,1753923041377,-679.38,0.00019506,2]
[376298355,1753923041387,-460.0,0.00019506,2]
[376298357,1753923041397,-460.0,0.00019507,2]
[376298359,1753923041406,-1846.79,0.00019507,2]
[376298361,1753923041415,-460.0,0.00019507,2]
[376298363,1753923041425,-703.92,0.00019507,2]
[376298365,1753923041435,-460.0,0.00019507,2]
[376298367,1753923041443,-200.0,0.00019615,15]
[376298369,1753923041453,-200.0,0.00019615,15]
[376298371,1753923041462,-200.0,0.00019615,15]
[376298373,1753923041471,-200.0,0.00019615,15]
[376298375,1753923041481,-200.0,0.00019615,15]
[376298377,1753923041491,-200.0,0.00019615,15]
[376298379,1753923041500,-200.0,0.00019615,15]
[376298381,1753923041509,-200.0,0.00019615,15]
[376298383,1753923041519,-460.0,0.00019726,2]
[376298385,1753923041528,-151.0,0.00019726,2]
[376298387,1753923041537,-151.0,0.00019726,2]
[376298389,1753923041546,-151.0,0.00019726,2]
[376298391,1753923041556,-151.0,0.00019726,2]
[376298393,1753923041566,-151.0,0.00019726,2]
[376298395,1753923041576,-468.0,0.00019726,2]
[376298397,1753923041586,-151.0,0.00019726,2]
[376298399,1753923041595,-151.0,0.00019726,2]
[376298401,1753923041605,-151.0,0.00019726,2]
[376298403,1753923041615,-151.0,0.00019726,2]
[376298405,1753923041625,-151.0,0.00019726,2]
[376298406,1753923041634,-181.23702289,0.00019726,2]
[376298408,1753923041643,-151.0,0.00019726,2]
[376298410,1753923041653,-151.0,0.00019726,2]
[376298412,1753923041662,-151.0,0.00019726,2]
[376298414,1753923041671,-152.70394576,0.00019726,2]
[376298416,1753923041681,-151.30450914,0.00019726,2]
[376298418,1753923041690,-265.97574308,0.00019726,2]
[376298420,1753923041699,-151.0,0.00019726,2]
[376298422,1753923041709,-151.0,0.00019726,2]
[376298424,1753923041721,-211.12151948,0.00019726,2]
[376298426,1753923041730,-151.0,0.00019726,2]
[376298428,1753923041740,-460.0,0.00019778,2]
[376298430,1753923041749,-952.29,0.00019779,2]
[376298432,1753923041758,-626.73,0.00019779,2]
[376298434,1753923041767,-460.0,0.00019779,2]
[376298436,1753923041776,-460.0,0.00019779,2]
[376298438,1753923041786,-460.0,0.00019779,2]
[376298440,1753923041795,-1384.98,0.0001978,2]
[376298442,1753923041805,-679.38,0.0001978,2]
[376298444,1753923041814,-460.0,0.0001978,2]
[376298446,1753923041823,-460.0,0.00019781,2]
[376298448,1753923041833,-1846.79,0.00019781,2]
[376298450,1753923041842,-460.0,0.00019781,2]
[376298452,1753923041852,-703.92,0.00019781,2]
[376298454,1753923041864,-460.0,0.00019781,2]
[376298456,1753923041874,-151.0,0.000199,2]
[376298458,1753923041883,-151.0,0.000199,2]
[376298459,1753923041892,-258.15145505,0.000199,2]
[376298461,1753923041901,-1049.08955008,0.000199,2]
[376298463,1753923041911,-518.95234384,0.00019938,2]
[376298465,1753923041920,-151.0,0.0002,2]
[376298467,1753923041930,-151.0,0.0002,2]
[376298469,1753923041939,-151.0,0.0002,2]
[376298471,1753923041949,-468.0,0.0002,2]
[376298473,1753923041958,-151.0,0.0002,2]
[376298475,1753923041967,-151.0,0.0002,2]
[376298477,1753923041977,-151.0,0.0002,2]
[376298479,1753923041987,-151.31981386,0.0002,2]
[376298481,1753923041996,-151.0,0.0002,2]
[376298497,1753923042142,-151.0,0.0002,2]
[376298499,1753923042158,-151.0,0.0002,2]
[376298501,1753923042167,-151.0,0.0002,2]
[376298503,1753923042177,-460.0,0.0002,2]
[376298505,1753923042186,-460.0,0.00020052,2]
[376298507,1753923042196,-952.29,0.00020053,2]
[376298509,1753923042206,-626.73,0.00020053,2]
[376298511,1753923042215,-460.0,0.00020053,2]
[376298513,1753923042224,-460.0,0.00020053,2]
[376298515,1753923042233,-502.05,0.00020053,2]
[376298517,1753923042243,-1384.98,0.00020054,2]
[376298519,1753923042252,-151.0,0.00020054,2]
[376298521,1753923042262,-151.0,0.00020054,2]
[376298523,1753923042271,-679.38,0.00020054,2]
[376298525,1753923042283,-460.0,0.00020054,2]
[376298527,1753923042292,-460.0,0.00020054,2]
[376298529,1753923042301,-460.0,0.00020054,2]
[376298531,1753923042310,-598.81,0.00020054,2]
[376298533,1753923042319,-485.49,0.00020054,2]
[376298535,1753923042329,-237.55,0.00020055,2]
[376298537,1753923042340,-1846.79,0.00020055,2]
[376298539,1753923042350,-460.0,0.00020055,2]
[376298541,1753923042360,-703.92,0.00020055,2]
[376298543,1753923042369,-1049.0895498,0.00020141,2]
[376298545,1753923042378,-893.32,0.00020162,2]
[376298547,1753923042387,-151.0,0.00020174,2]
[376298549,1753923042397,-160.0,0.00020187,2]
[376298551,1753923042406,-78.17302144,0.00020273,2]
[376298556,1753923042448,-460.0,0.00020055,2]
[376298558,1753923042458,-381.82697856,0.00020273,2]
[376298560,1753923042467,-468.0,0.00020274,2]
[376298562,1753923042476,-151.0,0.00020274,2]
[376298564,1753923042485,-460.0,0.00020326,2]
[376298566,1753923042495,-196.42144928,0.00020327,2]
[376298568,1753923042507,-755.86855072,0.00020327,2]
[376298570,1753923042516,-626.73,0.00020327,2]
[376298572,1753923042525,-460.0,0.00020327,2]
[376298574,1753923042534,-460.0,0.00020327,2]
[376298576,1753923042544,-151.0,0.00020328,2]
[376298578,1753923042553,-1384.98,0.00020328,2]
[376298580,1753923042563,-679.38,0.00020328,2]
[376298581,1753923042572,-460.0,0.00020328,2]
[376298583,1753923042583,-460.0,0.00020328,2]
[376298585,1753923042592,-598.81,0.00020328,2]
[376298589,1753923042601,-460.0,0.00020328,2]
[376298590,1753923042611,-485.49,0.00020328,2]
[376298593,1753923042620,-1846.79,0.00020329,2]
[376298595,1753923042629,-460.0,0.00020329,2]
[376298597,1753923042638,-703.92,0.00020329,2]
[376298599,1753923042647,-460.0,0.00020329,2]
[376298601,1753923042657,-1049.0895498,0.00020383,3]
[376298603,1753923042666,-1086.55,0.00020435,2]
[376298606,1753923042675,-460.0,0.00020435,2]
[376298609,1753923042685,-893.32,0.00020436,2]
[376298612,1753923042696,-198.0,0.00020448,2]
[376298615,1753923042705,-460.0,0.00020547,2]
[376298617,1753923042714,-468.0,0.00020548,2]
[376298619,1753923042724,-198.0,0.00020548,2]
[376298621,1753923042733,-705.06,0.00020591,10]
[376298623,1753923042742,-460.0,0.000206,2]
[376298625,1753923042752,-952.29,0.00020601,2]
[376298627,1753923042761,-626.73,0.00020601,2]
[376298629,1753923042770,-460.0,0.00020601,2]
[376298632,1753923042780,-460.0,0.00020601,2]
[376298634,1753923042789,-1384.98,0.00020602,2]
[376298636,1753923042799,-679.38,0.00020602,2]
[376298638,1753923042808,-460.0,0.00020602,2]
[376298640,1753923042818,-460.0,0.00020602,2]
[376298642,1753923042827,-598.81,0.00020602,2]
[376298644,1753923042837,-485.49,0.00020602,2]
[376298646,1753923042846,-1846.79,0.00020603,2]
[376298647,1753923042855,-460.0,0.00020603,2]
[376298649,1753923042865,-703.92,0.00020603,2]
[376298651,1753923042874,-1049.0895498,0.00020624,3]
[376298653,1753923042884,-1086.55,0.00020709,2]
[376298655,1753923042893,-893.32,0.0002071,2]
[376298657,1753923042906,-260.0,0.00020735,2]
[376298659,1753923042915,-468.0,0.00020822,2]
[376298661,1753923042924,-1049.0895498,0.00020866,4]
[376298663,1753923042934,-460.0,0.00020874,2]
[376298665,1753923042944,-952.29,0.00020875,2]
[376298667,1753923042953,-626.73,0.00020875,2]
[376298668,1753923042963,-460.0,0.00020875,2]
[376298669,1753923042971,-1217.6220886,0.00020876,2]